[Event "Late-Titled-Tuesday-Blitz-July-09-2024"]
[Site "Chess.com"]
[Date "2024.07.09"]
[Round "4"]
[White "Stanbad1"]
[Black "Charodej1"]
[Result "1/2-1/2"]
[WhiteElo "2628"]
[BlackElo "2396"]
[TimeControl "180+1"]
[EndTime "14:37:30 PDT"]
[Termination "Game drawn by agreement"]

1. d4 {[%clk 0:02:59.9]} 1... Nf6 {[%clk 0:02:59.6]} 2. Nc3 {[%clk 0:02:59.9]}
2... d5 {[%clk 0:02:59.3]} 3. Bf4 {[%clk 0:03:00.2]} 3... a6 {[%clk 0:02:59.1]}
4. e3 {[%clk 0:03:00.6]} 4... Nbd7 {[%clk 0:02:56.4]} 5. Nf3 {[%clk 0:02:59.7]}
5... c5 {[%clk 0:02:54.6]} 6. dxc5 {[%clk 0:02:59.7]} 6... Nxc5 {[%clk
0:02:54.2]} 7. Be2 {[%clk 0:02:57.9]} 7... e6 {[%clk 0:02:53.8]} 8. O-O {[%clk
0:02:58]} 8... Be7 {[%clk 0:02:51.7]} 9. Re1 {[%clk 0:02:57.7]} 9... O-O {[%clk
0:02:51.1]} 10. Ne5 {[%clk 0:02:57.8]} 10... Nfe4 {[%clk 0:02:42.5]} 11. Nxe4
{[%clk 0:02:47.3]} 11... Nxe4 {[%clk 0:02:35.5]} 12. c4 {[%clk 0:02:46.7]} 12...
f6 {[%clk 0:02:28]} 13. Nf3 {[%clk 0:02:46.3]} 13... e5 {[%clk 0:02:27.5]} 14.
Bg3 {[%clk 0:02:46.5]} 14... Be6 {[%clk 0:02:19.7]} 15. cxd5 {[%clk 0:02:46.9]}
15... Qxd5 {[%clk 0:02:15]} 16. Qxd5 {[%clk 0:02:45.5]} 16... Bxd5 {[%clk
0:02:15.9]} 17. Red1 {[%clk 0:02:45.9]} 17... Bc6 {[%clk 0:02:11.2]} 18. Nd2
{[%clk 0:02:42.4]} 18... Nxg3 {[%clk 0:01:57.6]} 19. hxg3 {[%clk 0:02:43.3]}
19... Rfd8 {[%clk 0:01:48.8]} 20. Nc4 {[%clk 0:02:42.3]} 20... Rxd1+ {[%clk
0:01:44.2]} 21. Rxd1 {[%clk 0:02:41.9]} 21... Rd8 {[%clk 0:01:44.8]} 22. Rc1
{[%clk 0:02:40.4]} 22... Bb5 {[%clk 0:01:36.1]} 23. Rc2 {[%clk 0:02:39.5]} 23...
Rc8 {[%clk 0:01:21.1]} 24. b3 {[%clk 0:02:37.3]} 24... Kf8 {[%clk 0:01:19.3]}
25. e4 {[%clk 0:02:37.1]} 25... Bd7 {[%clk 0:01:14.1]} 26. Rd2 {[%clk
0:02:34.8]} 26... Be6 {[%clk 0:01:10.2]} 27. f3 {[%clk 0:02:31.8]} 27... Ke8
{[%clk 0:01:07.3]} 28. Kh2 {[%clk 0:02:31]} 28... Rd8 {[%clk 0:01:04.9]} 29. Rc2
{[%clk 0:02:30.5]} 29... Rc8 {[%clk 0:00:59.6]} 30. Rd2 {[%clk 0:02:30.2]} 30...
Rd8 {[%clk 0:00:57.2]} 31. Rb2 {[%clk 0:02:28]} 31... Bc5 {[%clk 0:00:55.6]} 32.
a4 {[%clk 0:02:27.1]} 32... Rd7 {[%clk 0:00:48.8]} 33. b4 {[%clk 0:02:26.3]}
33... Bd4 {[%clk 0:00:48.6]} 34. Rc2 {[%clk 0:02:25]} 34... Ke7 {[%clk
0:00:47.4]} 35. b5 {[%clk 0:02:22.9]} 35... axb5 {[%clk 0:00:46.1]} 36. axb5
{[%clk 0:02:23.8]} 36... b6 {[%clk 0:00:45.7]} 37. Rd2 {[%clk 0:02:13.6]} 37...
Rc7 {[%clk 0:00:42.6]} 38. Rc2 {[%clk 0:02:09.4]} 38... g6 {[%clk 0:00:42.3]}
39. Bd3 {[%clk 0:02:08.2]} 39... f5 {[%clk 0:00:42.7]} 40. exf5 {[%clk
0:02:05.2]} 40... gxf5 {[%clk 0:00:43.2]} 41. Ne3 {[%clk 0:02:02]} 41... Rxc2
{[%clk 0:00:39.3]} 42. Nxc2 {[%clk 0:02:02.9]} 42... Bc5 {[%clk 0:00:38.4]} 43.
g4 {[%clk 0:02:02.9]} 43... fxg4 {[%clk 0:00:37.7]} 44. Bxh7 {[%clk 0:02:03]}
44... gxf3 {[%clk 0:00:37.3]} 45. gxf3 {[%clk 0:02:03.9]} 45... Kf6 {[%clk
0:00:32.5]} 46. Bd3 {[%clk 0:02:04]} 46... Bb3 {[%clk 0:00:29.1]} 47. Kg3 {[%clk
0:02:03.1]} 47... Bxc2 {[%clk 0:00:29.2]} 48. Bxc2 {[%clk 0:02:04]} 48... Bd4
{[%clk 0:00:29.2]} 49. Be4 {[%clk 0:02:04.2]} 49... Bc5 {[%clk 0:00:28.5]} 50.
f4 {[%clk 0:02:03.5]} 50... exf4+ {[%clk 0:00:27.7]} 51. Kxf4 {[%clk 0:02:04.4]}
51... Bd4 {[%clk 0:00:27.9]} 52. Bc6 {[%clk 0:02:04.8]} 52... Bc5 {[%clk
0:00:28.8]} 1/2-1/2

[Event "Late-Titled-Tuesday-Blitz-July-09-2024"]
[Site "Chess.com"]
[Date "2024.07.09"]
[Round "4"]
[White "ozates"]
[Black "TigrVShlyape"]
[Result "0-1"]
[WhiteElo "2630"]
[BlackElo "2963"]
[TimeControl "180+1"]
[EndTime "14:37:51 PDT"]
[Termination "TigrVShlyape won by resignation"]

1. e4 {[%clk 0:03:00.3]} 1... c5 {[%clk 0:03:00]} 2. Nf3 {[%clk 0:03:00.1]} 2...
e6 {[%clk 0:03:00.5]} 3. g3 {[%clk 0:02:55.4]} 3... Nc6 {[%clk 0:02:56.7]} 4.
Bg2 {[%clk 0:02:55.4]} 4... Nf6 {[%clk 0:02:56.6]} 5. d3 {[%clk 0:02:51.5]} 5...
e5 {[%clk 0:02:48]} 6. c3 {[%clk 0:02:47.9]} 6... Be7 {[%clk 0:02:47.5]} 7. O-O
{[%clk 0:02:46.6]} 7... O-O {[%clk 0:02:47.5]} 8. Re1 {[%clk 0:02:47.1]} 8... d6
{[%clk 0:02:46.6]} 9. h3 {[%clk 0:02:47]} 9... Re8 {[%clk 0:02:40.3]} 10. d4
{[%clk 0:02:46.4]} 10... h6 {[%clk 0:02:26.3]} 11. Na3 {[%clk 0:02:45.6]} 11...
Bf8 {[%clk 0:02:18.9]} 12. dxe5 {[%clk 0:02:41.9]} 12... dxe5 {[%clk 0:02:16.2]}
13. Qe2 {[%clk 0:02:41.4]} 13... a6 {[%clk 0:02:12.4]} 14. Nc4 {[%clk
0:02:35.7]} 14... b5 {[%clk 0:02:08.9]} 15. Rd1 {[%clk 0:02:35.5]} 15... Qc7
{[%clk 0:02:06]} 16. Ne3 {[%clk 0:02:36]} 16... Be6 {[%clk 0:01:50.1]} 17. Nd5
{[%clk 0:02:32.6]} 17... Bxd5 {[%clk 0:01:50]} 18. exd5 {[%clk 0:02:32.8]} 18...
Na5 {[%clk 0:01:50.6]} 19. Nh4 {[%clk 0:02:25.4]} 19... Rad8 {[%clk 0:01:49.2]}
20. a4 {[%clk 0:02:17.7]} 20... Nb3 {[%clk 0:01:48.4]} 21. Rb1 {[%clk
0:02:09.8]} 21... Nxc1 {[%clk 0:01:48.1]} 22. Rbxc1 {[%clk 0:02:07.2]} 22... c4
{[%clk 0:01:48.5]} 23. axb5 {[%clk 0:02:04.6]} 23... axb5 {[%clk 0:01:47.1]} 24.
Rd2 {[%clk 0:02:02]} 24... g6 {[%clk 0:01:46.3]} 25. Rcd1 {[%clk 0:02:01.1]}
25... Bc5 {[%clk 0:01:45.9]} 26. Kh2 {[%clk 0:01:53.3]} 26... e4 {[%clk
0:01:44.6]} 27. Re1 {[%clk 0:01:11.8]} 27... e3 {[%clk 0:01:39.8]} 28. fxe3
{[%clk 0:01:11.7]} 28... Rxe3 {[%clk 0:01:39.8]} 29. Qf2 {[%clk 0:01:12.1]}
29... Rxg3 {[%clk 0:01:36.8]} 30. d6 {[%clk 0:00:36.9]} 30... Bxd6 {[%clk
0:01:34.1]} 31. Rxd6 {[%clk 0:00:35.7]} 31... Rxg2+ {[%clk 0:01:33.7]} 32. Kxg2
{[%clk 0:00:24.5]} 32... Qxd6 {[%clk 0:01:32.3]} 33. Rf1 {[%clk 0:00:25.1]}
33... Kg7 {[%clk 0:01:28.4]} 34. Kh1 {[%clk 0:00:20.3]} 34... Qe6 {[%clk
0:01:26.3]} 35. Qg2 {[%clk 0:00:19.3]} 35... Rd5 {[%clk 0:01:25.9]} 36. Nf3
{[%clk 0:00:15]} 36... Rh5 {[%clk 0:01:25.7]} 37. Kh2 {[%clk 0:00:11.6]} 37...
Ng4+ {[%clk 0:01:23.8]} 38. Kg3 {[%clk 0:00:11.8]} 38... Ne3 {[%clk 0:01:23.8]}
39. Nd4 {[%clk 0:00:10.6]} 39... Qe5+ {[%clk 0:01:22.5]} 0-1

[Event "Late-Titled-Tuesday-Blitz-July-09-2024"]
[Site "Chess.com"]
[Date "2024.07.09"]
[Round "4"]
[White "SoCalJuniorChess"]
[Black "toninhojit"]
[Result "0-1"]
[WhiteElo "2268"]
[BlackElo "2494"]
[TimeControl "180+1"]
[EndTime "14:37:51 PDT"]
[Termination "toninhojit won by checkmate"]

1. d4 {[%clk 0:03:00.9]} 1... d5 {[%clk 0:02:59.7]} 2. Nc3 {[%clk 0:03:00]} 2...
c6 {[%clk 0:02:56.9]} 3. Bf4 {[%clk 0:02:54.3]} 3... Bf5 {[%clk 0:02:57]} 4. e3
{[%clk 0:02:52.6]} 4... Nf6 {[%clk 0:02:56.6]} 5. f3 {[%clk 0:02:51.7]} 5... h6
{[%clk 0:02:54.9]} 6. g4 {[%clk 0:02:49.1]} 6... Bh7 {[%clk 0:02:54.5]} 7. Bd3
{[%clk 0:02:47.9]} 7... Bxd3 {[%clk 0:02:54.7]} 8. cxd3 {[%clk 0:02:47.2]} 8...
e6 {[%clk 0:02:55.6]} 9. Nge2 {[%clk 0:02:38.5]} 9... Bd6 {[%clk 0:02:54.2]} 10.
Rb1 {[%clk 0:02:27.6]} 10... Qe7 {[%clk 0:02:41.6]} 11. Bxd6 {[%clk 0:02:19.9]}
11... Qxd6 {[%clk 0:02:42.5]} 12. b4 {[%clk 0:02:19.8]} 12... Nbd7 {[%clk
0:02:42]} 13. b5 {[%clk 0:02:19.4]} 13... c5 {[%clk 0:02:42.5]} 14. dxc5 {[%clk
0:02:13.4]} 14... Qxc5 {[%clk 0:02:42.5]} 15. d4 {[%clk 0:02:12.3]} 15... Qd6
{[%clk 0:02:42.7]} 16. Qb3 {[%clk 0:01:46]} 16... O-O {[%clk 0:02:41.3]} 17. Qb4
{[%clk 0:01:46.3]} 17... Qxb4 {[%clk 0:02:33.2]} 18. Rxb4 {[%clk 0:01:47.2]}
18... Rfc8 {[%clk 0:02:33.1]} 19. Kd2 {[%clk 0:01:45.4]} 19... Nb6 {[%clk
0:02:32.5]} 20. Rc1 {[%clk 0:01:31.4]} 20... Nc4+ {[%clk 0:02:32.3]} 21. Kd3
{[%clk 0:01:31.5]} 21... Ne8 {[%clk 0:02:28.7]} 22. e4 {[%clk 0:01:28.8]} 22...
Nb6 {[%clk 0:02:20.9]} 23. exd5 {[%clk 0:01:26.8]} 23... exd5 {[%clk 0:02:15.8]}
24. Nf4 {[%clk 0:01:27.1]} 24... Nf6 {[%clk 0:02:15.3]} 25. Re1 {[%clk
0:01:21.1]} 25... Rc7 {[%clk 0:02:12.9]} 26. a4 {[%clk 0:01:19.1]} 26... Rac8
{[%clk 0:02:12.1]} 27. Rb3 {[%clk 0:01:19.7]} 27... g5 {[%clk 0:01:54.5]} 28.
Nfe2 {[%clk 0:01:07.5]} 28... Re8 {[%clk 0:01:49.6]} 29. Rb4 {[%clk 0:00:58.7]}
29... Rce7 {[%clk 0:01:43.1]} 30. a5 {[%clk 0:00:43.6]} 30... Re3+ {[%clk
0:01:41.6]} 31. Kc2 {[%clk 0:00:41.1]} 31... Nc4 {[%clk 0:01:37.6]} 32. b6
{[%clk 0:00:30.8]} 32... a6 {[%clk 0:01:37.3]} 33. Kd1 {[%clk 0:00:29.7]} 33...
Rd3+ {[%clk 0:01:36.1]} 34. Kc2 {[%clk 0:00:29.4]} 34... Rxf3 {[%clk 0:01:36.3]}
35. Na4 {[%clk 0:00:28.9]} 35... Rf2 {[%clk 0:01:28.4]} 36. Kd1 {[%clk
0:00:26.7]} 36... Ne3+ {[%clk 0:01:28.4]} 37. Kd2 {[%clk 0:00:27]} 37... Ng2
{[%clk 0:01:28.9]} 38. Nc5 {[%clk 0:00:22.2]} 38... Nxe1 {[%clk 0:01:26.8]} 39.
Nxb7 {[%clk 0:00:21.9]} 39... Rexe2+ {[%clk 0:01:26.8]} 40. Kd1 {[%clk
0:00:21.7]} 40... Nd3 {[%clk 0:01:20.6]} 41. Nd6 {[%clk 0:00:18.2]} 41... Re1#
{[%clk 0:01:20.9]} 0-1

[Event "Late-Titled-Tuesday-Blitz-July-09-2024"]
[Site "Chess.com"]
[Date "2024.07.09"]
[Round "4"]
[White "Goryachkina"]
[Black "MatthewG-p4p"]
[Result "0-1"]
[WhiteElo "2713"]
[BlackElo "2932"]
[TimeControl "180+1"]
[EndTime "14:37:59 PDT"]
[Termination "MatthewG-p4p won on time"]

1. Nf3 {[%clk 0:02:59]} 1... c5 {[%clk 0:02:58.7]} 2. g3 {[%clk 0:02:59]} 2...
g6 {[%clk 0:02:58.8]} 3. Bg2 {[%clk 0:02:59]} 3... Bg7 {[%clk 0:02:59.1]} 4. O-O
{[%clk 0:02:58.8]} 4... Nc6 {[%clk 0:02:59.7]} 5. c3 {[%clk 0:02:43.8]} 5... e5
{[%clk 0:02:57.7]} 6. d4 {[%clk 0:02:36.9]} 6... cxd4 {[%clk 0:02:58.6]} 7. cxd4
{[%clk 0:02:36.8]} 7... e4 {[%clk 0:02:59.4]} 8. Ng5 {[%clk 0:02:12.6]} 8... d5
{[%clk 0:02:56]} 9. Nc3 {[%clk 0:02:07]} 9... Nge7 {[%clk 0:02:38.9]} 10. e3
{[%clk 0:01:57.6]} 10... O-O {[%clk 0:02:36]} 11. f3 {[%clk 0:01:50]} 11... h6
{[%clk 0:02:29.8]} 12. Nh3 {[%clk 0:01:49.9]} 12... f5 {[%clk 0:02:15.1]} 13.
Kh1 {[%clk 0:01:45.2]} 13... Kh7 {[%clk 0:02:14.7]} 14. Bd2 {[%clk 0:01:44]}
14... Be6 {[%clk 0:02:14.6]} 15. Rc1 {[%clk 0:01:36.1]} 15... Rc8 {[%clk
0:02:13.3]} 16. Na4 {[%clk 0:01:29.8]} 16... b6 {[%clk 0:02:08.4]} 17. Qe2
{[%clk 0:01:28.4]} 17... g5 {[%clk 0:02:04.2]} 18. Nf2 {[%clk 0:01:25.9]} 18...
Qd7 {[%clk 0:02:03.8]} 19. b3 {[%clk 0:01:21.3]} 19... Ng6 {[%clk 0:01:56.4]}
20. f4 {[%clk 0:01:11]} 20... gxf4 {[%clk 0:01:53.5]} 21. gxf4 {[%clk
0:01:06.6]} 21... Nh4 {[%clk 0:01:44.5]} 22. Rg1 {[%clk 0:00:43.1]} 22... Bf6
{[%clk 0:01:35.3]} 23. Nc3 {[%clk 0:00:23.2]} 23... Bf7 {[%clk 0:01:35.2]} 24.
Qe1 {[%clk 0:00:05.9]} 24... Qe8 {[%clk 0:01:31.5]} 25. Ne2 {[%clk 0:00:04.4]}
25... Rg8 {[%clk 0:01:30.7]} 26. Ng3 {[%clk 0:00:04.1]} 26... Rg7 {[%clk
0:01:23.3]} 27. Qf1 {[%clk 0:00:03.1]} 27... Qd7 {[%clk 0:01:17.2]} 28. Qb5
{[%clk 0:00:02.6]} 28... Be6 {[%clk 0:01:17.9]} 29. Rge1 {[%clk 0:00:01.7]}
29... Nxg2 {[%clk 0:01:14.5]} 30. Kxg2 {[%clk 0:00:01.9]} 30... h5 {[%clk
0:01:15.4]} 31. Kh1 {[%clk 0:00:02.1]} 31... Bf7 {[%clk 0:01:13.8]} 32. Rg1
{[%clk 0:00:01.3]} 32... h4 {[%clk 0:01:14.5]} 33. Nf1 {[%clk 0:00:01.2]} 33...
Bh5 {[%clk 0:01:14.3]} 34. h3 {[%clk 0:00:01.4]} 34... Rxg1+ {[%clk 0:01:13.2]}
0-1

[Event "Late-Titled-Tuesday-Blitz-July-09-2024"]
[Site "Chess.com"]
[Date "2024.07.09"]
[Round "4"]
[White "myburger"]
[Black "WildTricks"]
[Result "0-1"]
[WhiteElo "2535"]
[BlackElo "2712"]
[TimeControl "180+1"]
[EndTime "14:38:09 PDT"]
[Termination "WildTricks won by resignation"]

1. d4 {[%clk 0:03:00.9]} 1... Nf6 {[%clk 0:02:59.7]} 2. Nc3 {[%clk 0:02:59.4]}
2... d5 {[%clk 0:02:59.3]} 3. Bf4 {[%clk 0:02:58.9]} 3... a6 {[%clk 0:02:58.9]}
4. e3 {[%clk 0:02:58]} 4... b5 {[%clk 0:02:59.4]} 5. Bd3 {[%clk 0:02:51.3]} 5...
e6 {[%clk 0:02:55.5]} 6. Nf3 {[%clk 0:02:48.3]} 6... c5 {[%clk 0:02:55.8]} 7.
dxc5 {[%clk 0:02:45.6]} 7... Bxc5 {[%clk 0:02:56.7]} 8. O-O {[%clk 0:02:43.5]}
8... Bb7 {[%clk 0:02:55.9]} 9. Ne2 {[%clk 0:02:41.7]} 9... Nc6 {[%clk
0:02:53.7]} 10. c3 {[%clk 0:02:34.5]} 10... Qe7 {[%clk 0:02:51.1]} 11. Ne5
{[%clk 0:02:33.7]} 11... O-O {[%clk 0:02:42.8]} 12. Nd4 {[%clk 0:02:30.1]} 12...
Nxe5 {[%clk 0:02:41.4]} 13. Bxe5 {[%clk 0:02:28.9]} 13... Bd6 {[%clk 0:02:42]}
14. f4 {[%clk 0:02:21.2]} 14... Bxe5 {[%clk 0:02:38.4]} 15. fxe5 {[%clk
0:02:22.1]} 15... Ne4 {[%clk 0:02:38.6]} 16. Bxe4 {[%clk 0:02:21.7]} 16... dxe4
{[%clk 0:02:38.4]} 17. Qh5 {[%clk 0:02:18.5]} 17... Rad8 {[%clk 0:02:31.4]} 18.
Rf4 {[%clk 0:02:14.2]} 18... h6 {[%clk 0:02:14]} 19. Raf1 {[%clk 0:02:10.7]}
19... Rd5 {[%clk 0:01:41.5]} 20. Rxe4 {[%clk 0:01:41.5]} 20... Qg5 {[%clk
0:01:37.4]} 21. Qf3 {[%clk 0:01:21.3]} 21... Rdd8 {[%clk 0:01:20.6]} 22. Qf4
{[%clk 0:01:09.2]} 22... Qg6 {[%clk 0:01:15.6]} 23. Nf5 {[%clk 0:01:01.8]} 23...
Qxf5 {[%clk 0:01:08.5]} 24. Qxf5 {[%clk 0:00:56.4]} 24... exf5 {[%clk
0:01:09.4]} 25. Rd4 {[%clk 0:00:56.8]} 25... Be4 {[%clk 0:01:03.3]} 26. Rfd1
{[%clk 0:00:54.6]} 26... Rde8 {[%clk 0:00:57.7]} 27. Rd6 {[%clk 0:00:51.2]}
27... a5 {[%clk 0:00:55.9]} 28. Ra6 {[%clk 0:00:47.4]} 28... a4 {[%clk
0:00:55.3]} 29. Kf2 {[%clk 0:00:42.7]} 29... Rxe5 {[%clk 0:00:54.2]} 30. Rd7
{[%clk 0:00:41.5]} 30... Rd5 {[%clk 0:00:49.3]} 31. Rxd5 {[%clk 0:00:39.5]}
31... Bxd5 {[%clk 0:00:50.2]} 32. Rb6 {[%clk 0:00:37.5]} 32... Bxa2 {[%clk
0:00:45.9]} 33. Rxb5 {[%clk 0:00:36.8]} 33... Rd8 {[%clk 0:00:45.9]} 34. Rb4
{[%clk 0:00:34]} 34... Bb3 {[%clk 0:00:41.8]} 35. Kg3 {[%clk 0:00:28.3]} 35...
Rd2 {[%clk 0:00:40]} 0-1

[Event "Late-Titled-Tuesday-Blitz-July-09-2024"]
[Site "Chess.com"]
[Date "2024.07.09"]
[Round "4"]
[White "Road2GM3000"]
[Black "th3d4rkness"]
[Result "1-0"]
[WhiteElo "2392"]
[BlackElo "2255"]
[TimeControl "180+1"]
[EndTime "14:38:09 PDT"]
[Termination "Road2GM3000 won by resignation"]

1. d4 {[%clk 0:03:00.9]} 1... Nf6 {[%clk 0:02:58.5]} 2. c4 {[%clk 0:03:01.3]}
2... e6 {[%clk 0:02:58.6]} 3. Nc3 {[%clk 0:03:01.9]} 3... Bb4 {[%clk 0:02:58.7]}
4. Nf3 {[%clk 0:03:02.7]} 4... Bxc3+ {[%clk 0:02:58.8]} 5. bxc3 {[%clk
0:03:02.6]} 5... c5 {[%clk 0:02:59.1]} 6. Bg5 {[%clk 0:03:02.9]} 6... h6 {[%clk
0:02:54.3]} 7. Bh4 {[%clk 0:03:03.2]} 7... d6 {[%clk 0:02:49.4]} 8. e3 {[%clk
0:03:03.6]} 8... Nbd7 {[%clk 0:02:48.8]} 9. Bd3 {[%clk 0:03:04.2]} 9... Qa5
{[%clk 0:02:46.7]} 10. Qc2 {[%clk 0:03:04.6]} 10... b6 {[%clk 0:02:30.9]} 11.
O-O {[%clk 0:03:05]} 11... Bb7 {[%clk 0:02:28]} 12. Nd2 {[%clk 0:03:05.1]} 12...
e5 {[%clk 0:02:15.1]} 13. f4 {[%clk 0:03:01.5]} 13... exd4 {[%clk 0:02:09.1]}
14. exd4 {[%clk 0:03:00.8]} 14... O-O {[%clk 0:02:07.3]} 15. Rae1 {[%clk
0:02:44.6]} 15... Rfe8 {[%clk 0:02:06.4]} 16. d5 {[%clk 0:02:44.3]} 16... a6
{[%clk 0:01:49.4]} 17. Ne4 {[%clk 0:02:31]} 17... Nxe4 {[%clk 0:01:48]} 18. Bxe4
{[%clk 0:02:31.9]} 18... b5 {[%clk 0:01:44.1]} 19. Bf5 {[%clk 0:02:27.1]} 19...
Nf8 {[%clk 0:01:39.2]} 20. Re2 {[%clk 0:01:49.6]} 20... Rxe2 {[%clk 0:01:29.6]}
21. Qxe2 {[%clk 0:01:48]} 21... Qxc3 {[%clk 0:01:28]} 22. Qe7 {[%clk 0:01:42.7]}
22... Qd4+ {[%clk 0:01:16.7]} 23. Bf2 {[%clk 0:01:38.7]} 23... Qxf4 {[%clk
0:01:15.8]} 24. Qxb7 {[%clk 0:01:39]} 24... Re8 {[%clk 0:01:11.2]} 25. Bxc5
{[%clk 0:01:33.1]} 25... Qxc4 {[%clk 0:00:51]} 26. Bxd6 {[%clk 0:01:15.2]} 26...
Qd4+ {[%clk 0:00:50.4]} 27. Kh1 {[%clk 0:01:15]} 27... Qc4 {[%clk 0:00:45]} 28.
Bd3 {[%clk 0:00:31.3]} 28... Qxd3 {[%clk 0:00:31.5]} 29. Qxf7+ {[%clk
0:00:31.1]} 29... Kh7 {[%clk 0:00:32.1]} 30. Bxf8 {[%clk 0:00:31.5]} 30... Rxf8
{[%clk 0:00:24.7]} 31. Qxf8 {[%clk 0:00:30.2]} 31... Qxd5 {[%clk 0:00:25.4]} 32.
Qf5+ {[%clk 0:00:29.7]} 1-0

[Event "Late-Titled-Tuesday-Blitz-July-09-2024"]
[Site "Chess.com"]
[Date "2024.07.09"]
[Round "4"]
[White "miraitrunks"]
[Black "petr577"]
[Result "0-1"]
[WhiteElo "2024"]
[BlackElo "2415"]
[TimeControl "180+1"]
[EndTime "14:38:20 PDT"]
[Termination "petr577 won by resignation"]

1. e4 {[%clk 0:03:00.9]} 1... e5 {[%clk 0:02:59.5]} 2. Nf3 {[%clk 0:03:00.7]}
2... Nc6 {[%clk 0:02:59]} 3. d4 {[%clk 0:02:59.4]} 3... exd4 {[%clk 0:02:59.9]}
4. Nxd4 {[%clk 0:02:59.8]} 4... Nf6 {[%clk 0:03:00.3]} 5. Nxc6 {[%clk
0:02:58.9]} 5... bxc6 {[%clk 0:02:59.7]} 6. Bd3 {[%clk 0:02:59.4]} 6... d5
{[%clk 0:02:59.5]} 7. O-O {[%clk 0:02:57.3]} 7... dxe4 {[%clk 0:02:54.7]} 8. Qe2
{[%clk 0:02:57]} 8... Be7 {[%clk 0:02:49.5]} 9. Bxe4 {[%clk 0:02:56.5]} 9...
Nxe4 {[%clk 0:02:45.9]} 10. Qxe4 {[%clk 0:02:57.3]} 10... O-O {[%clk 0:02:44.2]}
11. Nc3 {[%clk 0:02:55.8]} 11... Be6 {[%clk 0:02:33]} 12. Rd1 {[%clk 0:02:54.4]}
12... Qc8 {[%clk 0:02:18.9]} 13. Qxc6 {[%clk 0:02:50.6]} 13... Rb8 {[%clk
0:02:17.7]} 14. Bf4 {[%clk 0:02:49.2]} 14... Rxb2 {[%clk 0:02:10.6]} 15. Nd5
{[%clk 0:02:18]} 15... Bxd5 {[%clk 0:02:09.9]} 16. Rxd5 {[%clk 0:02:18.9]} 16...
Bf6 {[%clk 0:02:01.8]} 17. Rad1 {[%clk 0:02:14.1]} 17... Rxa2 {[%clk 0:01:54.9]}
18. h3 {[%clk 0:02:12.7]} 18... h6 {[%clk 0:01:34.6]} 19. Rd7 {[%clk 0:02:11]}
19... Qa6 {[%clk 0:01:14.3]} 20. Qxc7 {[%clk 0:01:56.7]} 20... Qe2 {[%clk
0:01:03.1]} 21. R1d2 {[%clk 0:01:55.1]} 21... Qe1+ {[%clk 0:00:49.7]} 22. Kh2
{[%clk 0:01:55.1]} 22... Qe4 {[%clk 0:00:49.8]} 23. Bd6 {[%clk 0:01:49.1]} 23...
Ra1 {[%clk 0:00:37.7]} 24. f3 {[%clk 0:01:33.7]} 24... Qe1 {[%clk 0:00:35.8]}
25. Bf4 {[%clk 0:00:30.3]} 25... Bh4 {[%clk 0:00:22.4]} 26. Rd1 {[%clk
0:00:19.1]} 26... Rxd1 {[%clk 0:00:21.2]} 27. Rxd1 {[%clk 0:00:18.4]} 27... Qxd1
{[%clk 0:00:22.1]} 28. Bd6 {[%clk 0:00:18.5]} 28... Re8 {[%clk 0:00:19.8]} 0-1

[Event "Late-Titled-Tuesday-Blitz-July-09-2024"]
[Site "Chess.com"]
[Date "2024.07.09"]
[Round "4"]
[White "rhungaski"]
[Black "eightbyeightchess"]
[Result "1-0"]
[WhiteElo "2631"]
[BlackElo "2387"]
[TimeControl "180+1"]
[EndTime "14:38:25 PDT"]
[Termination "rhungaski won by resignation"]

1. Nf3 {[%clk 0:02:43.2]} 1... d5 {[%clk 0:02:59.4]} 2. g3 {[%clk 0:02:43.1]}
2... Nf6 {[%clk 0:02:59]} 3. Bg2 {[%clk 0:02:43.5]} 3... Bf5 {[%clk 0:02:58.3]}
4. O-O {[%clk 0:02:43.6]} 4... e6 {[%clk 0:02:58.6]} 5. d3 {[%clk 0:02:42.1]}
5... c5 {[%clk 0:02:58.4]} 6. Nbd2 {[%clk 0:02:38.1]} 6... Nc6 {[%clk
0:02:58.6]} 7. Qe1 {[%clk 0:02:30.9]} 7... Be7 {[%clk 0:02:48]} 8. e4 {[%clk
0:02:30.2]} 8... Bg6 {[%clk 0:02:45.2]} 9. Nh4 {[%clk 0:02:28.1]} 9... O-O
{[%clk 0:02:42.6]} 10. Nxg6 {[%clk 0:02:27.6]} 10... hxg6 {[%clk 0:02:43.5]} 11.
Nf3 {[%clk 0:02:12.1]} 11... Qb6 {[%clk 0:02:39.3]} 12. Qe2 {[%clk 0:02:09.7]}
12... Rac8 {[%clk 0:02:34.1]} 13. e5 {[%clk 0:02:07.9]} 13... Nd7 {[%clk
0:02:30.2]} 14. c3 {[%clk 0:02:05.7]} 14... Qa6 {[%clk 0:02:20.3]} 15. h4 {[%clk
0:02:04.4]} 15... b5 {[%clk 0:02:11.1]} 16. Bf4 {[%clk 0:02:03.3]} 16... b4
{[%clk 0:02:10.8]} 17. c4 {[%clk 0:02:01.5]} 17... Nb6 {[%clk 0:02:04.4]} 18. b3
{[%clk 0:02:01.1]} 18... Rfd8 {[%clk 0:01:59.3]} 19. Rad1 {[%clk 0:01:57.6]}
19... Qb7 {[%clk 0:01:43]} 20. g4 {[%clk 0:01:49.4]} 20... a5 {[%clk 0:01:40.4]}
21. h5 {[%clk 0:01:44.5]} 21... gxh5 {[%clk 0:01:40.3]} 22. gxh5 {[%clk
0:01:45.4]} 22... Kf8 {[%clk 0:01:40.7]} 23. Qe3 {[%clk 0:01:39.4]} 23... Ke8
{[%clk 0:01:39.3]} 24. Bg3 {[%clk 0:01:37.9]} 24... Kd7 {[%clk 0:01:36]} 25. d4
{[%clk 0:01:37.1]} 25... cxd4 {[%clk 0:01:30.5]} 26. Nxd4 {[%clk 0:01:34.9]}
26... Nxd4 {[%clk 0:01:17.8]} 27. Qxd4 {[%clk 0:01:32.3]} 27... Bc5 {[%clk
0:01:16.2]} 28. Qf4 {[%clk 0:01:29.7]} 28... Rf8 {[%clk 0:00:52.4]} 29. cxd5
{[%clk 0:01:23.4]} 29... Nxd5 {[%clk 0:00:53.3]} 30. Rxd5+ {[%clk 0:01:23.1]}
30... exd5 {[%clk 0:00:54.2]} 31. Rd1 {[%clk 0:01:23.2]} 31... Ke7 {[%clk
0:00:45.8]} 32. Bh4+ {[%clk 0:01:15.8]} 32... f6 {[%clk 0:00:43.8]} 33. Bxd5
{[%clk 0:01:09.1]} 33... Qc7 {[%clk 0:00:42.2]} 34. h6 {[%clk 0:01:03.4]} 34...
g5 {[%clk 0:00:24.5]} 35. exf6+ {[%clk 0:00:57.7]} 35... Rxf6 {[%clk 0:00:24.2]}
36. Re1+ {[%clk 0:00:46.5]} 36... Kd7 {[%clk 0:00:18.6]} 37. Qxf6 {[%clk
0:00:37.7]} 37... Rf8 {[%clk 0:00:18.1]} 38. Qe6+ {[%clk 0:00:35.7]} 1-0